bitfinex/quotes_SOLUSD_20240827
["timestamp","ask_amount","ask_price","bid_price","bid_amount"]
[1724780823883,15.8452,154.44,154.36,1.62324388]
[1724780824171,15.8452,154.44,154.35,40.98601045]
[1724780824877,15.8452,154.44,154.36,1.62325314]
[1724780825167,15.8452,154.44,154.35,40.98601045]
[1724780825382,50.0,154.43,154.36,1.62324385]
[1724780825558,50.0,154.43,154.35,40.98601045]
[1724780825756,50.0,154.43,154.36,21.62324521]
[1724780825956,15.8452,154.44,154.37,11.86892908]
[1724780826185,15.8452,154.44,154.38,20.0]
[1724780826363,15.8452,154.44,154.39,1.29508342]
[1724780826561,15.8452,154.44,154.4,1.29512013]
[1724780826780,15.8452,154.44,154.4,21.29512013]
[1724780827575,15.8452,154.44,154.4,20.0]
[1724780830360,15.8452,154.44,154.4,21.29512115]
[1724780830562,16.6538,154.48,154.41,45.0]
[1724780830759,16.6538,154.48,154.42,1.2950182]
[1724780831171,16.6538,154.48,154.43,1.29501812]
[1724780831953,50.0,154.47,154.43,1.29501812]
[1724780832263,50.0,154.47,154.41,45.0]
[1724780832652,16.6538,154.48,154.41,45.0]
[1724780834077,50.0,154.47,154.41,45.0]
[1724780835776,16.6538,154.48,154.42,20.0]
[1724780835980,16.6538,154.48,154.43,1.29493446]
[1724780836666,50.0,154.47,154.43,1.29493446]
[1724780836862,16.6538,154.48,154.42,20.0]
[1724780837197,1.1277196,154.52,154.43,46.29488071]
[1724780837198,50.0,154.51,154.43,46.29488071]
[1724780837687,27.78868725,154.52,154.43,46.29488071]
[1724780837688,27.78868725,154.52,154.44,20.0]
[1724780837864,50.0,154.51,154.45,46.29468086]
[1724780838179,27.78868725,154.52,154.46,1.29468263]
[1724780838564,50.0,154.51,154.46,1.29468263]
[1724780838955,50.0,154.51,154.45,45.0]
[1724780839283,50.0,154.51,154.46,1.29466903]
[1724780839472,16.0873,154.52,154.46,1.29466903]
[1724780839870,50.0,154.51,154.45,45.0]
[1724780840562,26.66096765,154.52,154.45,45.0]
[1724780840885,50.0,154.51,154.45,45.0]
[1724780841273,26.66096765,154.52,154.45,45.0]
[1724780841580,16.0873,154.52,154.46,1.29460052]
[1724780841756,16.0873,154.52,154.46,21.29460052]
[1724780841955,16.0873,154.52,154.47,45.0]
[1724780845765,66.0873,154.52,154.47,45.0]
[1724780846365,60.57366765,154.54,154.47,45.0]
[1724780848178,50.0,154.52,154.47,45.0]
[1724780852365,60.57366765,154.52,154.47,45.0]
[1724780852571,60.57366765,154.5,154.46,20.0]
[1724780852773,60.57366765,154.5,154.41,20.0]
[1724780854697,60.57366765,154.5,154.42,45.0]
[1724780854898,60.57366765,154.5,154.43,20.0]
[1724780855067,60.57366765,154.5,154.44,45.0]
[1724780862709,50.0,154.48,154.43,20.0]
[1724780863001,50.0,154.48,154.41,20.0]
[1724780863201,50.0,154.48,154.42,45.0]
[1724780863698,50.0,154.48,154.43,20.0]
[1724780865314,60.57366765,154.48,154.43,20.0]
[1724780869401,50.0,154.47,154.43,20.0]
[1724780877208,50.0,154.47,154.42,45.0]
[1724780877383,50.0,154.47,154.41,45.0]
[1724780877583,50.0,154.47,154.42,20.0]
[1724780878295,10.57366765,154.46,154.42,20.0]
[1724780882321,51.12797164,154.49,154.43,1.29504376]
[1724780882815,61.70163929,154.49,154.43,1.29504376]
[1724780882994,50.0,154.47,154.43,1.29504376]
[1724780884406,51.12797164,154.49,154.43,46.29504376]
[1724780888222,51.12797164,154.49,154.43,45.0]
[1724780888615,10.57366765,154.46,154.43,45.0]
[1724780888816,10.57366765,154.46,154.42,20.0]
[1724780889015,50.0,154.49,154.42,20.0]
[1724780889317,60.57366765,154.49,154.43,1.29497908]
[1724780890120,60.57366765,154.49,154.43,46.29497908]
[1724780894322,60.57366765,154.49,154.43,45.0]
[1724780894820,60.57366765,154.49,154.44,1.29483207]
[1724780897020,1.12798705,154.51,154.44,1.29483207]
[1724780897219,1.12798705,154.51,154.44,27.65983207]
[1724780897424,1.12798705,154.51,154.45,45.12549]
[1724780897609,53.39221894,154.56,154.46,37.73930161]
[1724780897808,53.39221894,154.56,154.47,55.82464765]
[1724780897809,3.39221894,154.56,154.47,55.82464765]
[1724780898018,3.39221894,154.56,154.48,21.29417461]
[1724780898332,3.39221894,154.57,154.49,46.29417401]
[1724780898531,3.39221894,154.57,154.5,20.0]
[1724780898826,3.39221894,154.57,154.51,46.29417762]
[1724780899027,3.39221894,154.57,154.52,1.29417512]
[1724780899531,63.96588659,154.58,154.51,46.29418054]
[1724780899705,3.39221894,154.57,154.51,46.29418054]
[1724780899905,63.96588659,154.58,154.52,1.29420871]
[1724780900306,1.12742098,154.57,154.52,1.29420871]
[1724780907740,1.12742098,154.57,154.52,37.53760871]
[1724780907910,50.0,154.6,154.53,45.0]
[1724780908115,50.0,154.6,154.54,1.29390895]
[1724780908319,10.57366765,154.59,154.53,45.0]
[1724780909513,50.0,154.58,154.53,45.0]
[1724780913039,10.57366765,154.57,154.53,45.0]
[1724780914035,1.12726654,154.59,154.54,1.29402379]
[1724780914338,1.12726654,154.59,154.55,1.29385376]
[1724780914835,60.57366765,154.58,154.53,45.0]
[1724780917217,10.57366765,154.58,154.54,1.29402458]
[1724780917425,10.57366765,154.58,154.55,1.2939366]
[1724780918237,1.12726654,154.59,154.55,1.2939366]
[1724780918424,1.12726654,154.59,154.54,7.61454885]
[1724780918626,1.12726654,154.59,154.55,45.0]
[1724780919537,1.12726654,154.59,154.55,46.29385013]
[1724780923947,1.12726654,154.59,154.55,45.0]
[1724780928649,1.12726654,154.59,154.56,1.29378489]
[1724780929448,1.12726654,154.59,154.55,45.0]
[1724780930549,11.70093419,154.59,154.55,45.0]
[1724780931845,1.12726654,154.59,154.55,45.0]
[1724780932733,1.12726654,154.59,154.55,46.29378193]
[1724780934030,1.12726654,154.59,154.55,45.0]
[1724780934636,11.70093419,154.59,154.55,45.0]
[1724780935025,10.57366765,154.59,154.55,45.0]
[1724780938762,10.57366765,154.59,154.55,46.29385214]
[1724780939456,11.7008701,154.61,154.55,46.29385214]
[1724780940363,11.7008701,154.61,154.55,45.0]
[1724780942262,1.12720245,154.61,154.55,45.0]
[1724780942763,10.57366765,154.59,154.55,45.0]
[1724780943235,10.57366765,154.57,154.52,36.2434]
[1724780943936,10.57366765,154.55,154.52,16.2434]
[1724780946344,10.57366765,154.56,154.52,16.2434]
[1724780948770,50.0,154.58,154.52,16.2434]
[1724780949069,60.57366765,154.58,154.53,1.2941211]
[1724780949662,60.57366765,154.58,154.52,16.2434]
[1724780949868,60.57366765,154.58,154.53,1.29412772]
[1724780950050,60.57366765,154.58,154.52,16.2434]
[1724780950254,50.0,154.58,154.52,16.2434]
[1724780950436,60.57366765,154.58,154.53,1.29411719]
[1724780951654,60.57366765,154.58,154.52,16.2434]
[1724780952039,60.57366765,154.56,154.52,16.2434]
[1724780952245,60.57366765,154.56,154.5,6.5383]
[1724780952580,60.57366765,154.56,154.51,65.0]
[1724780952942,10.57366765,154.54,154.51,65.0]
[1724780953139,10.57366765,154.54,154.48,16.113]
[1724780953342,50.0,154.53,154.49,20.0]
[1724780953542,10.57366765,154.54,154.49,20.0]
[1724780954175,50.0,154.55,154.49,20.0]
[1724780954468,10.57366765,154.54,154.49,20.0]
[1724780954968,1.12720245,154.61,154.5,46.29420621]
[1724780954969,50.0,154.58,154.5,46.29420621]
[1724780955192,3.39221894,154.6,154.5,46.29420621]
[1724780955193,10.57366765,154.59,154.51,26.1139]
[1724780955372,10.57366765,154.59,154.52,46.29402079]
[1724780955572,10.57366765,154.59,154.53,20.0]
[1724780956176,50.0,154.6,154.53,20.0]
[1724780956384,10.57366765,154.59,154.53,20.0]
[1724780959476,50.0,154.58,154.53,20.0]
[1724780961399,1.12745698,154.57,154.53,20.0]
[1724780962796,1.12745698,154.57,154.53,21.29406778]
[1724780964090,1.12745698,154.57,154.53,36.30826778]
[1724780964394,60.57366765,154.6,154.54,45.0]
[1724780967296,60.57366765,154.58,154.53,35.0142]
[1724780968375,1.1274269,154.59,154.53,35.0142]
[1724780968591,1.1274269,154.59,154.57,10.57366765]
[1724780968773,1.1274269,154.59,154.58,81.30767522]
[1724780968975,50.0,154.68,154.58,81.43316522]
[1724780969298,50.0,154.66,154.58,80.13969]
[1724780971394,50.0,154.66,154.58,80.0142]
[1724780971608,10.57366765,154.63,154.58,80.0142]
[1724780971778,10.57366765,154.65,154.58,80.0142]
[1724780973210,50.0,154.64,154.58,80.0142]
[1724780973383,10.57366765,154.63,154.58,80.0142]
[1724780973892,50.0,154.62,154.58,80.0142]
[1724780974212,50.0,154.62,154.58,35.0142]
[1724780975578,10.57366765,154.63,154.58,35.0142]
[1724780975979,60.57366765,154.66,154.59,45.0]
[1724780977904,50.0,154.64,154.59,45.0]
[1724780978108,10.57366765,154.63,154.59,45.0]
[1724780979406,1.12670374,154.67,154.58,35.0142]
[1724780979407,10.57366765,154.61,154.58,35.0142]
[1724780982807,50.0,154.62,154.58,35.0142]
[1724780984705,50.0,154.62,154.58,15.0142]
[1724780989516,1.12706944,154.61,154.58,15.0142]
[1724780990101,50.0,154.62,154.58,15.0142]
[1724780990614,50.0,154.62,154.55,6.5684]
[1724780990615,10.57366765,154.61,154.55,6.5684]
[1724780990818,10.57366765,154.61,154.56,65.0]
[1724780993329,1.12724078,154.6,154.56,65.0]
[1724780994331,10.57366765,154.61,154.56,65.0]
[1724780996913,10.57366765,154.61,154.51,10.57366765]
[1724780996914,10.57366765,154.57,154.52,21.556]
[1724780997117,10.57366765,154.55,154.52,15.0419]
[1724780998629,1.12755001,154.56,154.53,45.0]
[1724780998921,60.57366765,154.61,154.53,45.0]
[1724780998922,60.57366765,154.61,154.54,6.5141]
[1724780999134,61.70093455,154.61,154.55,46.29388126]
[1724780999730,61.70093455,154.61,154.55,45.0]
[1724781003120,11.70093455,154.61,154.55,45.0]
[1724781003509,61.70093455,154.61,154.56,1.29383355]
[1724781004132,61.70093455,154.61,154.55,45.0]
[1724781005827,60.57366765,154.59,154.53,20.0]
[1724781006117,10.57366765,154.57,154.52,15.0419]
[1724781007337,10.57366765,154.57,154.53,65.0]
[1724781007518,50.0,154.59,154.54,1.29404878]
[1724781007709,1.1272669,154.61,154.53,65.0]
[1724781007710,1.1272669,154.61,154.55,1.29394894]
[1724781017036,1.1272669,154.61,154.53,65.0]
[1724781017210,60.57366765,154.6,154.53,65.0]
[1724781017415,60.57366765,154.6,154.53,20.0]
[1724781018118,60.57366765,154.6,154.54,1.29393557]
[1724781018626,60.57366765,154.6,154.54,46.29393557]
[1724781018940,60.57366765,154.6,154.55,20.0]
[1724781019140,60.57366765,154.6,154.55,21.29391864]
[1724781019434,1.12721923,154.59,154.55,20.0]
[1724781019639,60.57366765,154.6,154.55,20.0]
[1724781022039,60.57366765,154.58,154.54,45.0]
[1724781022249,10.57366765,154.56,154.52,15.0419]
[1724781022447,10.57366765,154.56,154.5,6.545]
[1724781022448,60.57366765,154.56,154.5,6.545]
[1724781022658,10.57366765,154.54,154.5,6.545]
[1724781023432,1.12715688,154.55,154.51,1.29423857]
[1724781023947,1.12715688,154.55,154.5,6.545]
[1724781024159,1.12715688,154.55,154.51,20.0]
[1724781024522,1.12715688,154.55,154.52,1.29424015]
[1724781024747,1.12715688,154.55,154.52,45.0]
[1724781024954,60.57366765,154.58,154.52,45.0]
[1724781032461,15.0687,154.6,154.52,46.29417304]
[1724781032665,50.0,154.63,154.54,10.57366765]
[1724781032830,27.08896765,154.64,154.55,66.2936463]
[1724781033031,50.0,154.65,154.55,72.5831463]
[1724781033257,50.0,154.65,154.56,10.69915765]
[1724781033427,1.1273961,154.66,154.6,10.57366765]
[1724781033639,1.1273961,154.66,154.62,10.57366765]
[1724781033954,50.451854,154.73,154.62,10.57366765]
[1724781033955,61.02552165,154.73,154.63,28.17550539]
[1724781034357,60.57366765,154.71,154.64,45.0]
[1724781034529,60.57366765,154.71,154.65,20.0]
[1724781034732,0.451854,154.73,154.65,20.0]
[1724781034733,60.57366765,154.69,154.65,20.0]
[1724781035030,60.57366765,154.67,154.6,15.6236]
[1724781035233,10.57366765,154.67,154.61,65.0]
[1724781035738,60.57366765,154.67,154.61,65.0]
[1724781036143,50.0,154.67,154.61,65.0]
[1724781036659,1.12675441,154.66,154.61,65.0]
[1724781038031,1.12675441,154.66,154.61,66.29334584]
[1724781038837,50.0,154.67,154.61,65.0]
[1724781039040,1.12671738,154.66,154.61,65.0]
[1724781039634,50.0,154.71,154.62,1.29327715]
[1724781039857,80.09467035,154.73,154.62,1.29327715]
[1724781040043,1.12643059,154.71,154.63,0.25098]
[1724781040253,1.12643059,154.71,154.64,1.29288301]
[1724781040444,50.451854,154.73,154.65,1.29284179]
[1724781040642,1.12622405,154.72,154.65,1.29284179]
[1724781041453,51.12622405,154.72,154.62,1.292869]
[1724781041637,51.12622405,154.72,154.63,0.25098]
[1724781041638,50.0,154.7,154.63,0.25098]
[1724781041834,50.0,154.7,154.62,0.12549]
[1724781042050,50.0,154.7,154.61,65.0]
[1724781046363,50.0,154.7,154.62,1.29315299]
[1724781046555,51.12622405,154.72,154.62,1.29315299]
[1724781047961,51.12622405,154.72,154.63,0.12549]
[1724781048140,51.12622405,154.72,154.63,0.25098]
[1724781048455,1.12622405,154.72,154.63,1.54391377]
[1724781048659,50.0,154.71,154.63,0.25098]
[1724781048966,50.0,154.71,154.62,0.25098]
[1724781049260,1.12622405,154.72,154.62,0.12549]
[1724781050157,1.12622405,154.72,154.62,1.4185178]
[1724781050461,1.12622405,154.72,154.63,0.12549]
[1724781051048,1.12622405,154.72,154.62,0.25098]
[1724781052462,1.12622405,154.72,154.62,1.54391265]
[1724781052664,1.12622405,154.72,154.63,6.3919]
[1724781052968,1.12622405,154.72,154.64,65.25098]
[1724781054161,1.12622405,154.72,154.65,16.6285]
[1724781054345,1.12622405,154.72,154.66,65.25098]
[1724781054551,0.451854,154.73,154.67,1.29255206]
[1724781054769,0.451854,154.73,154.68,1.54352706]
[1724781054974,0.451854,154.73,154.68,1.41803706]
[1724781055146,0.451854,154.73,154.68,0.12549]
[1724781055346,0.451854,154.73,154.67,0.12549]
[1724781055771,0.451854,154.73,154.66,65.12549]
[1724781055953,0.451854,154.73,154.66,65.0]
[1724781056671,30.09467035,154.73,154.66,20.0]
[1724781058366,30.09467035,154.73,154.67,45.0]
[1724781058570,0.451854,154.73,154.67,45.0]
[1724781058752,0.451854,154.73,154.68,20.0]
[1724781060770,0.451854,154.73,154.69,1.2928507]
[1724781060952,0.451854,154.73,154.69,45.0]
[1724781061456,0.451854,154.73,154.68,20.0]
[1724781061657,0.451854,154.73,154.66,20.0]
[1724781061870,0.451854,154.73,154.67,45.0]
[1724781062040,0.451854,154.73,154.68,20.0]
[1724781062241,0.451854,154.73,154.69,45.0]
[1724781062748,0.451854,154.73,154.69,51.6464]
[1724781062943,0.451854,154.73,154.7,1.29256755]
[1724781063146,0.451854,154.73,154.71,1.29256758]
[1724781064275,0.451854,154.73,154.7,1.29256803]
[1724781064451,0.451854,154.73,154.71,1.2925686]
[1724781065372,0.451854,154.73,154.7,1.2925687]
[1724781065550,0.451854,154.73,154.71,1.2925685]
[1724781066569,0.451854,154.73,154.7,1.29252728]
[1724781066772,0.451854,154.73,154.71,1.29252729]
[1724781066947,0.451854,154.73,154.71,61.29262729]
[1724781067453,0.451854,154.73,154.72,20.0]
[1724781067660,0.451854,154.73,154.72,65.0]
[1724781067864,0.451854,154.73,154.72,66.29235397]
[1724781068377,0.451854,154.73,154.72,65.0]
[1724781076272,12.29262195,154.73,154.67,15.8776]
[1724781076473,12.29262195,154.73,154.68,20.0]
[1724781077148,12.29262195,154.73,154.68,21.29276937]
[1724781077345,0.451854,154.73,154.68,20.0]
[1724781078368,0.451854,154.73,154.69,45.0]
[1724781078567,0.451854,154.73,154.7,20.0]
[1724781078754,0.451854,154.73,154.71,46.29257102]
[1724781078955,0.451854,154.73,154.71,45.0]
[1724781079661,0.451854,154.73,154.72,1.29247917]
[1724781080280,0.451854,154.73,154.71,45.0]
[1724781080961,0.451854,154.73,154.71,46.29245555]
[1724781081385,0.451854,154.73,154.72,28.16386795]
[1724781081579,1.12578323,154.78,154.72,93.41484795]
[1724781081758,1.12578323,154.78,154.75,11.84076795]
[1724781081954,11.84076795,154.83,154.76,66.41738968]
[1724781082149,50.0,154.82,154.76,65.0]
[1724781082585,11.84076795,154.83,154.77,1.29203464]
[1724781082753,50.0,154.84,154.77,1.29203464]
[1724781084365,50.0,154.84,154.77,1.29201725]
[1724781084568,29.57618836,154.85,154.77,1.29186999]
[1724781084764,29.57618836,154.85,154.78,0.12549]
[1724781084960,30.70162071,154.85,154.78,1.41728431]
[1724781085182,30.70162071,154.85,154.76,65.12549]
[1724781085357,30.70162071,154.85,154.77,0.12549]
[1724781087162,1.12543235,154.85,154.78,15.0698]
[1724781087364,1.12543235,154.85,154.79,65.0]
[1724781087562,50.0,154.84,154.79,65.0]
[1724781088468,50.0,154.82,154.79,20.0]
[1724781088683,50.0,154.82,154.75,20.0]
[1724781088984,51.12543235,154.85,154.76,1.29200804]
[1724781089281,50.0,154.83,154.75,20.12549]
[1724781089481,50.0,154.83,154.76,0.12549]
[1724781089877,51.12543235,154.85,154.76,46.54294232]
[1724781090078,51.12543235,154.85,154.77,20.0]
[1724781090274,51.12543235,154.85,154.78,45.0]
[1724781090463,51.12543235,154.85,154.79,20.0]
[1724781090662,51.12543235,154.85,154.8,45.0]
[1724781097265,1.12543235,154.85,154.8,45.0]
[1724781097465,1.12543235,154.85,154.81,1.29169194]
[1724781097974,50.0,154.88,154.81,1.29169194]
[1724781098280,50.0,154.88,154.8,61.042]
[1724781098594,50.0,154.86,154.8,45.0]
[1724781098886,50.0,154.84,154.76,16.042]
[1724781099082,29.57618836,154.83,154.77,20.0]
[1724781099499,50.0,154.84,154.77,20.0]
[1724781099677,29.57618836,154.83,154.77,20.0]
[1724781100583,50.0,154.82,154.78,45.0]
[1724781102688,50.0,154.82,154.77,20.0]
[1724781102882,50.0,154.79,154.72,15.1944]
[1724781103194,79.57618836,154.79,154.72,15.1944]
[1724781104180,50.0,154.77,154.72,15.1944]
[1724781104383,79.57618836,154.77,154.7,6.2972]
[1724781104568,79.57618836,154.77,154.71,20.0]
[1724781105689,29.57618836,154.77,154.71,21.29259997]
[1724781105871,15.3188,154.8,154.71,21.29259997]
[1724781106075,11.83695376,154.8,154.72,15.2486]
[1724781106297,11.83695376,154.82,154.73,21.29223739]
[1724781106500,50.0,154.81,154.74,1.29214904]
[1724781106681,11.83695376,154.8,154.74,46.29214904]
[1724781106878,11.83695376,154.8,154.74,45.0]
[1724781107391,50.0,154.79,154.74,45.0]
[1724781107706,11.83695376,154.76,154.73,20.0]
[1724781107993,11.83695376,154.78,154.73,20.0]
[1724781108399,50.0,154.8,154.73,20.0]
[1724781108586,11.83695376,154.78,154.73,20.0]
[1724781108781,11.83695376,154.78,154.74,1.29250648]
[1724781109281,11.83695376,154.78,154.74,46.29250648]
[1724781109986,51.125665,154.83,154.74,45.0]
[1724781110191,11.83695376,154.8,154.74,45.0]
[1724781110580,11.83695376,154.82,154.74,45.0]
[1724781111609,1.125665,154.83,154.76,6.6269]
[1724781111809,1.125665,154.83,154.77,66.29192373]
[1724781111981,1.125665,154.83,154.77,65.0]
[1724781115402,51.125665,154.83,154.77,65.0]
[1724781116198,29.57955668,154.82,154.77,65.0]
[1724781116439,50.0,154.8,154.72,21.7267]
[1724781116589,50.0,154.8,154.73,20.0]
[1724781117484,79.57955668,154.8,154.73,20.0]
[1724781117901,50.0,154.78,154.73,20.0]
[1724781118086,79.57955668,154.8,154.73,21.29239441]
[1724781118688,29.57955668,154.8,154.73,21.29239441]
[1724781118900,29.57955668,154.8,154.74,1.29221734]
[1724781118901,79.57955668,154.8,154.74,1.29221734]
[1724781119099,79.57955668,154.8,154.74,45.0]
[1724781119304,79.57955668,154.8,154.75,20.0]
[1724781119612,79.57955668,154.8,154.76,45.0]
[1724781120522,50.0,154.78,154.75,20.0]
[1724781120686,50.0,154.78,154.73,20.0]
[1724781120886,50.0,154.78,154.73,21.29239325]
[1724781120887,1.12586238,154.77,154.73,21.29239325]
[1724781121184,1.12586238,154.77,154.74,1.29239345]
[1724781121700,50.0,154.83,154.74,46.29239345]
[1724781122005,1.12567945,154.8,154.75,20.12549]
[1724781122205,1.12567945,154.8,154.72,21.7267]
[1724781122206,50.0,154.8,154.76,45.0]
[1724781122706,1.12579395,154.79,154.72,21.7267]
[1724781122888,50.0,154.78,154.73,65.0]
[1724781123603,1.12579395,154.79,154.74,1.29242176]
[1724781126215,50.0,154.86,154.75,1.54292447]
[1724781126512,1.12536363,154.84,154.76,16.4027]
[1724781126703,1.12536363,154.84,154.77,66.54281723]
[1724781126895,50.0,154.85,154.77,66.54281723]
[1724781127209,51.12538844,154.87,154.77,66.54281723]
[1724781127398,1.12538844,154.87,154.77,66.54281723]
[1724781127590,51.12538844,154.87,154.78,6.0678]
[1724781127790,51.12538844,154.87,154.79,66.54265033]
[1724781127994,51.12538844,154.87,154.8,1.29167067]
[1724781128186,1.12538844,154.87,154.8,1.29167067]
[1724781128603,0.8267509,154.89,154.82,16.6108]
[1724781128913,0.8267509,154.89,154.83,66.2914202]
[1724781129313,50.8267509,154.89,154.83,65.0]
[1724781129697,50.8267509,154.89,154.83,45.0]
[1724781132211,80.40630758,154.89,154.83,45.0]
[1724781132597,79.57955668,154.87,154.82,16.6108]
[1724781132802,79.57955668,154.87,154.78,22.5171]
[1724781132995,79.57955668,154.87,154.79,65.0]
[1724781133201,79.57955668,154.87,154.8,1.29172854]
[1724781133402,79.57955668,154.87,154.79,65.0]
[1724781136206,50.0,154.84,154.79,21.29175601]
[1724781136402,50.0,154.86,154.8,1.29188788]
[1724781137021,50.0,154.86,154.79,20.0]
[1724781137322,29.57955668,154.87,154.8,1.29176785]
[1724781137710,29.57955668,154.87,154.8,46.29176785]
[1724781138027,29.57955668,154.87,154.81,20.0]
[1724781138327,29.57955668,154.87,154.82,45.0]
[1724781139826,50.0,154.86,154.82,45.0]
[1724781140122,29.57955668,154.87,154.82,46.29173098]
[1724781140328,50.0,154.87,154.82,46.29173098]
[1724781140703,96.91280758,154.89,154.82,46.29173098]
[1724781141210,50.0,154.87,154.82,45.0]
[1724781142325,61.82656218,154.87,154.82,45.0]
[1724781149216,50.0,154.87,154.82,45.0]
[1724781149417,50.0,154.85,154.82,45.0]
[1724781153140,1.1253837,154.86,154.82,46.29179596]
[1724781154537,0.8267509,154.89,154.83,42.96882639]
[1724781154736,0.8267509,154.89,154.84,45.0]
[1724781154923,0.8267509,154.89,154.85,21.2913109]
[1724781155234,0.8267509,154.89,154.86,45.0]
[1724781155439,0.8267509,154.89,154.86,46.29131299]
[1724781156018,0.8267509,154.89,154.86,45.0]
[1724781156516,0.8267509,154.89,154.86,46.2913115]
[1724781157228,0.8267509,154.89,154.86,45.0]
[1724781159023,12.65331308,154.89,154.86,45.0]
[1724781159342,0.8267509,154.89,154.86,45.0]
[1724781163244,0.8267509,154.89,154.87,21.29131065]
[1724781163449,0.8267509,154.89,154.88,45.0]
[1724781167325,0.8267509,154.89,154.88,65.0]
[1724781169334,0.8267509,154.89,154.88,45.0]
[1724781169520,0.8267509,154.89,154.88,65.0]
[1724781170453,0.8267509,154.89,154.88,20.0]
[1724781170821,0.8267509,154.89,154.84,21.29117676]
[1724781171039,0.8267509,154.89,154.85,0.12549]
[1724781171528,0.8267509,154.89,154.85,45.12549]
[1724781171730,0.8267509,154.89,154.86,21.29120931]
[1724781171934,0.8267509,154.89,154.87,45.0]
[1724781172247,0.8267509,154.89,154.88,20.0]
[1724781172552,0.8267509,154.89,154.88,65.0]
[1724781175844,0.8267509,154.89,154.88,45.0]
[1724781181566,0.8267509,154.89,154.83,21.5518]
[1724781181760,0.8267509,154.89,154.84,66.54216322]
[1724781182748,0.8267509,154.89,154.84,65.25098]
[1724781183866,12.65331308,154.89,154.84,65.25098]
[1724781185066,11.82656218,154.87,154.84,20.0]
[1724781185642,11.82656218,154.87,154.81,20.0]
[1724781185842,11.82656218,154.87,154.82,1.2916135]
[1724781186265,11.82656218,154.87,154.81,20.0]
[1724781186774,12.65331308,154.89,154.82,45.25098]
[1724781186981,12.65331308,154.89,154.83,20.0]
[1724781187265,12.65331308,154.89,154.84,45.25098]
[1724781188053,62.65331308,154.89,154.84,45.0]
[1724781188863,11.82656218,154.87,154.84,45.0]
[1724781192485,50.8267509,154.89,154.84,45.0]
[1724781192652,11.82656218,154.87,154.84,45.0]
[1724781195073,11.82656218,154.85,154.79,15.2465]
[1724781195378,61.82656218,154.85,154.8,20.0]
[1724781195555,11.82656218,154.83,154.8,20.0]
[1724781196173,11.82656218,154.85,154.8,20.0]
[1724781196378,11.82656218,154.87,154.8,20.0]
[1724781196676,11.82656218,154.87,154.81,45.25098]
[1724781196977,11.82656218,154.87,154.82,20.0]
[1724781197179,11.82656218,154.87,154.83,45.0]
[1724781200585,11.82656218,154.87,154.82,20.0]
[1724781200586,11.82656218,154.85,154.82,20.0]
[1724781200787,11.82656218,154.85,154.8,20.0]
[1724781201087,11.82656218,154.85,154.81,46.61869943]
[1724781201286,11.82656218,154.85,154.82,20.0]
[1724781202075,11.82656218,154.83,154.76,6.463]
[1724781202280,11.82656218,154.83,154.77,24.97408013]
[1724781202487,11.82656218,154.83,154.78,1.61899469]
[1724781202666,11.82656218,154.83,154.79,1.61899469]
[1724781202869,11.82656218,154.83,154.77,20.0]
[1724781203074,11.82656218,154.83,154.78,1.61899744]
[1724781203379,11.82656218,154.83,154.78,45.0]
[1724781203567,11.82656218,154.83,154.79,20.0]
[1724781203761,11.82656218,154.83,154.76,6.463]
[1724781203762,11.82656218,154.81,154.76,6.463]
[1724781204085,11.82656218,154.81,154.77,1.61907477]
[1724781204285,11.82656218,154.81,154.76,6.463]
[1724781204483,11.82656218,154.81,154.77,1.61908737]
[1724781204675,11.82656218,154.81,154.75,7.25108794]
[1724781204859,11.82656218,154.81,154.76,3.35386255]
[1724781205063,11.82656218,154.81,154.77,3.3534493]
[1724781205264,11.82656218,154.81,154.76,65.0]
[1724781205476,11.82656218,154.81,154.77,3.35330313]
[1724781205679,11.82656218,154.81,154.76,65.0]